fUST/lending_fUST_20240528
["ID","MTS","AMOUNT","RATE_DAILY","PERIOD"]
[328119659,1716895844326,-2840.76917652,0.00019178,2]
[328119660,1716895844341,-2840.76917652,0.00019178,2]
[328119661,1716895844351,-2840.76917652,0.00019178,2]
[328119662,1716895844360,-500.0,0.00019178,2]
[328119663,1716895844370,-2420.83352476,0.00019178,2]
[328119665,1716895844626,-419.93565176,0.00019178,2]
[328119667,1716895844636,-2840.76917652,0.00019178,2]
[328119669,1716895844646,-2840.76917652,0.00019178,2]
[328119670,1716895844656,-2840.76917652,0.00019178,2]
[328119671,1716895844666,-2840.76917652,0.00019178,2]
[328119672,1716895844676,-2840.76917652,0.00019178,2]
[328119673,1716895844685,-2840.76917652,0.00019178,2]
[328119674,1716895844694,-2840.76917652,0.00019178,2]
[328119675,1716895844703,-2840.76917652,0.00019178,2]
[328119676,1716895844713,-2840.76917652,0.00019178,2]
[328119677,1716895844722,-2840.76917652,0.00019178,2]
[328119678,1716895844731,-2840.76917652,0.00019178,2]
[328119679,1716895844740,-2840.76917652,0.00019178,2]
[328119680,1716895844750,-2840.76917652,0.00019178,2]
[328119681,1716895844759,-2840.76917652,0.00019178,2]
[328119682,1716895844769,-2840.76917652,0.00019178,2]
[328119683,1716895844779,-2840.76917652,0.00019178,2]
[328119684,1716895844789,-2840.76917652,0.00019178,2]
[328119685,1716895844798,-2819.46340767,0.00019178,2]
[328119686,1716895844808,-2819.46340767,0.00019178,2]
[328119687,1716895844818,-2819.46340767,0.00019178,2]
[328119688,1716895844828,-2819.46340767,0.00019178,2]
[328119689,1716895844838,-2819.46340767,0.00019178,2]
[328119690,1716895844848,-381.97269318,0.00019178,2]
[328119691,1716895844858,-382.22972714,0.00019178,2]
[328119692,1716895844868,-500.0,0.00019178,2]
[328119693,1716895844879,-500.0,0.00019178,2]
[328119694,1716895844889,-500.0,0.00019178,2]
[328119695,1716895844899,-554.52615101,0.00019178,2]
[328119696,1716895844909,-500.0,0.00019178,2]
[328119697,1716895844918,-151.0,0.00019178,2]
[328119698,1716895844928,-165.463404,0.00019178,2]
[328119699,1716895844938,-151.0,0.00019178,2]
[328119700,1716895844948,-151.0,0.00019178,2]
[328119701,1716895844958,-151.0,0.00019178,2]
[328119702,1716895844968,-151.0,0.00019178,2]
[328119703,1716895844978,-151.0,0.00019178,2]
[328119704,1716895844987,-151.0,0.00019178,2]
[328119705,1716895844997,-151.0,0.00019178,2]
[328119706,1716895845007,-151.0,0.00019178,2]
[328119707,1716895845016,-218.232094,0.00019178,2]
[328119708,1716895845026,-626.63558045,0.00019178,2]
[328119709,1716895845036,-151.0,0.00019178,2]
[328119710,1716895845047,-151.0,0.00019178,2]
[328119711,1716895845057,-151.0,0.00019178,2]
[328119712,1716895845067,-151.0,0.00019178,2]
[328119713,1716895845076,-151.0,0.00019178,2]
[328119714,1716895845086,-151.0,0.00019178,2]
[328119715,1716895845096,-151.0,0.00019178,2]
[328119716,1716895845105,-151.0,0.00019178,2]
[328119717,1716895845115,-151.426068,0.00019178,2]
[328119718,1716895845126,-152.136972,0.00019178,2]
[328119719,1716895845136,-151.0,0.00019178,2]
[328119720,1716895845146,-151.0,0.00019178,2]
[328119721,1716895845156,-151.0,0.00019178,2]
[328119722,1716895845166,-151.0,0.00019178,2]
[328119723,1716895845175,-151.0,0.00019178,2]
[328119724,1716895845185,-151.0,0.00019178,2]
[328119725,1716895845195,-151.0,0.00019178,2]
[328119726,1716895845204,-151.0,0.00019178,2]
[328119727,1716895845214,-151.0,0.00019178,2]
[328119728,1716895845223,-151.0,0.00019178,2]
[328119729,1716895845233,-151.0,0.00019178,2]
[328119730,1716895845243,-151.0,0.00019178,2]
[328119731,1716895845253,-151.0,0.00019178,2]
[328119732,1716895845264,-151.0,0.00019178,2]
[328119733,1716895845274,-151.0,0.00019178,2]
[328119734,1716895845285,-151.0,0.00019178,2]
[328119735,1716895845303,-151.0,0.00019178,2]
[328119736,1716895845313,-151.0,0.00019178,2]
[328119737,1716895845324,-238.819487,0.00019178,2]
[328119738,1716895845336,-151.0,0.00019178,2]
[328119739,1716895845347,-151.0,0.00019178,2]
[328119740,1716895845356,-151.0,0.00019178,2]
[328119741,1716895845366,-151.0,0.00019178,2]
[328119742,1716895845378,-151.0,0.00019178,2]
[328119743,1716895845387,-151.0,0.00019178,2]
[328119744,1716895845397,-274.419266,0.00019178,2]
[328119745,1716895845407,-210.779414,0.00019178,2]
[328119746,1716895845417,-151.0,0.00019178,2]
[328119747,1716895845430,-151.0,0.00019178,2]
[328119748,1716895845440,-160.256295,0.00019178,2]
[328119749,1716895845450,-172.577322,0.00019178,2]
[328119750,1716895845460,-174.375222,0.00019178,2]
[328119751,1716895845471,-593.0,0.000195,2]
[328119752,1716895845482,-620.00000001,0.00019816,2]
[328119753,1716895845492,-151.0,0.00019852,2]
[328119754,1716895845502,-88888.0,0.000199,2]
[328119755,1716895845511,-3420.65742798,0.0002,2]
[328119756,1716895845522,-3091.33941062,0.0002,2]
[328119757,1716895845531,-282.0,0.0002,2]
[328119758,1716895845541,-154.93802479,0.0002,2]
[328119759,1716895845550,-280.53391331,0.0002,2]
[328119760,1716895845560,-43899.50315412,0.0002,2]
[328119761,1716895845570,-279.1103904,0.0002,2]
[328119762,1716895845580,-1144.17653548,0.0002,2]
[328119763,1716895845589,-564.0,0.0002,2]
[328119764,1716895845598,-564.0,0.0002,2]
[328119765,1716895845608,-265.61515455,0.0002,2]
[328119766,1716895845617,-441.07287687,0.0002,2]
[328119767,1716895845629,-400.0,0.0002,2]
[328119768,1716895845640,-499.15286035,0.0002,2]
[328119769,1716895845650,-156.87995729,0.0002,2]
[328119770,1716895845660,-154.93802479,0.0002,2]
[328119771,1716895845670,-185.40839374,0.0002,2]
[328119772,1716895845680,-309.76767502,0.0002,2]
[328119773,1716895845691,-10751.49624481,0.0002,2]
[328119774,1716895845701,-7966.88406692,0.0002,2]
[328119779,1716895845834,-5320.15789806,0.0002,2]
[328119780,1716895845851,-3812.67790999,0.0002,2]
[328119787,1716895846360,-2850.41206919,0.0002,2]
[328119790,1716895927195,1979.82879731,9.999e-05,2]
[328119811,1716896248491,300.0,0.00028,120]
[328119814,1716896515944,4700.0,0.00028,120]
[328119815,1716896592561,1279.52397529,9.999e-05,2]
[328119816,1716896730150,-2117.10388927,0.00015599,2]
[328119817,1716896730174,-190.173234,0.00016496,2]
[328119818,1716896730196,-274.92390662,0.000165,2]
[328119819,1716896730220,-8599.3183211,0.00017523,2]
[328119820,1716896730243,-2406.5357047,0.00017523,2]
[328119821,1716896730268,-13362.283152,0.00017523,2]
[328119822,1716896730293,-151.0,0.00018394,3]
[328119823,1716896730317,-151.0,0.00018394,2]
[328119824,1716896730344,-478.96964712,0.000187,2]
[328119825,1716896730367,-7953.25395952,0.00018775,2]
[328119826,1716896730391,-157.845843,0.000188,2]
[328119827,1716896730414,-15081.27711692,0.00018874,2]
[328119828,1716896730436,-1465.14265931,0.000189,2]
[328119829,1716896730462,-150.0,0.00018932,2]
[328119830,1716896730486,-151.0,0.00019131,2]
[328119831,1716896730510,-162.7360072,0.00019132,2]
[328119832,1716896730534,-177.15435338,0.00019177,2]
[328119833,1716896730558,-362.39315768,0.00019178,2]
[328119834,1716896730583,-232.367789,0.00019178,2]
[328119835,1716896730609,-171.038686,0.00019178,2]
[328119836,1716896730632,-620.0,0.00019767,2]
[328119837,1716896730657,-2000.0,0.000198,2]
[328119838,1716896730681,-151.0,0.00019867,2]
[328119839,1716896730705,-4229.06661595,0.00019869,2]
[328119840,1716896730728,-1279.00926613,0.00019894,2]
[328119841,1716896730751,-356.37519222,0.00019894,2]
[328119842,1716896730776,-2104.10746827,0.00019894,2]
[328119843,1716896730800,-500.0,0.00019894,2]
[328119844,1716896730824,-500.0,0.00019894,2]
[328119845,1716896730850,-500.0,0.00019894,2]
[328119846,1716896730874,-450.82083734,0.00019894,2]
[328119847,1716896730898,-500.0,0.00019894,2]
[328119848,1716896730921,-500.0,0.00019894,2]
[328119849,1716896730944,-500.0,0.00019894,2]
[328119850,1716896730968,-2104.10746827,0.00019894,2]
[328119851,1716896730991,-500.0,0.00019894,2]
[328119852,1716896731014,-500.0,0.00019894,2]
[328119853,1716896731037,-500.0,0.00019894,2]
[328119854,1716896731061,-500.0,0.00019894,2]
[328119855,1716896731088,-2104.10746827,0.00019894,2]
[328119856,1716896731114,-355.87053043,0.00019894,2]
[328119857,1716896731135,-500.0,0.00019894,2]
[328119858,1716896731155,-500.0,0.00019894,2]
[328119859,1716896731175,-500.0,0.00019894,2]
[328119860,1716896731196,-500.0,0.00019894,2]
[328119861,1716896731219,-2104.10746827,0.00019894,2]
[328119862,1716896731504,-500.0,0.00019894,2]
[328119863,1716896731525,-500.0,0.00019894,2]
[328119864,1716896731543,-442.93799746,0.00019894,2]
[328119865,1716896731563,-2104.10746827,0.00019894,2]
[328119866,1716896731587,-500.0,0.00019894,2]
[328119867,1716896731608,-500.0,0.00019894,2]
[328119868,1716896731630,-300.16527647,0.00019894,2]
[328119869,1716896731652,-2104.10746827,0.00019894,2]
[328119870,1716896731673,-500.0,0.00019894,2]
[328119871,1716896731696,-2104.10746827,0.00019894,2]
[328119872,1716896731716,-500.0,0.00019894,2]
[328119873,1716896731738,-2104.10746827,0.00019894,2]
[328119874,1716896731760,-224.11943649,0.00019894,2]
[328119875,1716896731780,-531.47864692,0.00019894,2]
[328119876,1716896731799,-445.89838196,0.00019894,2]
[328119877,1716896731820,-2104.10746827,0.00019894,2]
[328119878,1716896731842,-500.0,0.00019894,2]
[328119879,1716896731860,-500.0,0.00019894,2]
[328119880,1716896731880,-2104.10746827,0.00019894,2]
[328119881,1716896731901,-500.0,0.00019894,2]
[328119882,1716896731925,-2104.10746827,0.00019894,2]
[328119883,1716896731946,-500.0,0.00019894,2]
[328119884,1716896731971,-2104.10746827,0.00019894,2]
[328119885,1716896731992,-500.0,0.00019894,2]
[328119886,1716896732015,-2104.10746827,0.00019894,2]
[328119887,1716896732036,-500.0,0.00019894,2]
[328119888,1716896732058,-500.0,0.00019894,2]
[328119889,1716896732080,-2104.10746827,0.00019894,2]
[328119890,1716896732104,-500.0,0.00019894,2]
[328119891,1716896732125,-2104.10746827,0.00019894,2]
[328119892,1716896732144,-500.0,0.00019894,2]
[328119893,1716896732165,-2104.10746827,0.00019894,2]
[328119894,1716896732185,-500.0,0.00019894,2]
[328119895,1716896732207,-2104.10746827,0.00019894,2]
[328119896,1716896732229,-2104.10746827,0.00019894,2]
[328119897,1716896732249,-500.0,0.00019894,2]
[328119898,1716896732273,-2104.10746827,0.00019894,2]
[328119899,1716896732295,-2104.10746827,0.00019894,2]
[328119900,1716896732318,-2104.10746827,0.00019894,2]
[328119901,1716896732338,-500.0,0.00019894,2]
[328119902,1716896732363,-2104.10746827,0.00019894,2]
[328119903,1716896732385,-893.79007287,0.00019894,2]
[328119905,1716896834114,-274.92390662,0.00018899,2]
[328119906,1716896834133,-976.76177287,0.000189,2]
[328119907,1716896834153,-162.7360072,0.00019,2]
[328119908,1716896834174,-226.86921493,0.00019892,2]
[328119909,1716896834195,-1516.70203665,0.00019893,2]
[328119910,1716896834216,-811.6640119,0.00019893,2]
[328119911,1716896834236,-517.23583095,0.00019893,2]
[328119912,1716896834256,-432.88139924,0.00019893,2]
[328119913,1716896834276,-500.0,0.00019893,2]
[328119914,1716896834296,-500.0,0.00019893,2]
[328119915,1716896834315,-152.73222523,0.00019893,2]
[328119916,1716896834334,-366.8016559,0.00019893,2]
[328119917,1716896834355,-811.6640119,0.00019893,2]
[328119918,1716896834374,-500.0,0.00019893,2]
[328119919,1716896834395,-483.76951458,0.00019893,2]
[328119920,1716896834415,-500.0,0.00019893,2]
[328119921,1716896834435,-500.0,0.00019893,2]
[328119922,1716896834456,-811.6640119,0.00019893,2]
[328119923,1716896834476,-500.0,0.00019893,2]
[328119924,1716896834499,-811.6640119,0.00019893,2]
[328119925,1716896834520,-811.6640119,0.00019893,2]
[328119926,1716896834541,-500.0,0.00019893,2]
[328119927,1716896834562,-500.0,0.00019893,2]
[328119928,1716896834584,-811.6640119,0.00019893,2]
[328119929,1716896834605,-440.04958294,0.00019893,2]
[328119930,1716896834630,-811.6640119,0.00019893,2]
[328119931,1716896834650,-500.0,0.00019893,2]
[328119932,1716896834678,-811.6640119,0.00019893,2]
[328119933,1716896834701,-811.6640119,0.00019893,2]
[328119934,1716896834722,-500.0,0.00019893,2]
[328119935,1716896834743,-811.6640119,0.00019893,2]
[328119936,1716896834764,-811.6640119,0.00019893,2]
[328119937,1716896834786,-811.6640119,0.00019893,2]
[328119938,1716896834806,-500.0,0.00019893,2]
[328119939,1716896834827,-811.6640119,0.00019893,2]
[328119940,1716896834848,-811.6640119,0.00019893,2]
[328119941,1716896834869,-811.6640119,0.00019893,2]
[328119942,1716896834890,-811.6640119,0.00019893,2]
[328119943,1716896834911,-811.6640119,0.00019893,2]
[328119944,1716896834932,-811.6640119,0.00019893,2]
[328119945,1716896834954,-811.6640119,0.00019893,2]
[328119946,1716896834975,-811.6640119,0.00019893,2]
[328119947,1716896835001,-811.6640119,0.00019893,2]
[328119948,1716896835022,-811.6640119,0.00019893,2]
[328119949,1716896835043,-811.6640119,0.00019893,2]
[328119950,1716896835063,-811.6640119,0.00019893,2]
[328119951,1716896835262,-811.6640119,0.00019893,2]
[328119952,1716896835284,-811.6640119,0.00019893,2]
[328119953,1716896835310,-811.6640119,0.00019893,2]
[328119954,1716896835331,-811.6640119,0.00019893,2]
[328119955,1716896835351,-811.6640119,0.00019893,2]
[328119956,1716896835372,-811.6640119,0.00019893,2]
[328119957,1716896835392,-811.6640119,0.00019893,2]
[328119958,1716896835413,-811.6640119,0.00019893,2]
[328119959,1716896835434,-811.6640119,0.00019893,2]
[328119960,1716896835455,-811.6640119,0.00019893,2]
[328119961,1716896835475,-811.6640119,0.00019893,2]
[328119962,1716896835497,-811.6640119,0.00019893,2]
[328119963,1716896835517,-811.6640119,0.00019893,2]
[328119964,1716896835538,-811.6640119,0.00019893,2]
[328119965,1716896835558,-811.6640119,0.00019893,2]
[328119966,1716896835579,-811.6640119,0.00019893,2]
[328119967,1716896835601,-811.6640119,0.00019893,2]
[328119968,1716896835625,-500.0,0.00019893,2]
[328119969,1716896835644,-409.44359407,0.00019893,2]
[328119970,1716896835665,-193.20893029,0.00019893,2]
[328119971,1716896835692,-500.0,0.00019893,2]
[328119972,1716896835712,-500.0,0.00019893,2]
[328119973,1716896835732,-500.0,0.00019893,2]
[328119974,1716896835753,-500.0,0.00019893,2]
[328119975,1716896835774,-500.0,0.00019893,2]
[328119976,1716896835794,-500.0,0.00019893,2]
[328119977,1716896835814,-500.0,0.00019893,2]
[328119978,1716896835834,-500.0,0.00019893,2]
[328119979,1716896835854,-500.0,0.00019893,2]
[328119980,1716896835874,-500.0,0.00019893,2]
[328119981,1716896835895,-4357.10788015,0.00019893,2]
[328119982,1716896835917,-500.0,0.00019893,2]
[328119983,1716896835939,-4357.10788015,0.00019893,2]
[328119984,1716896835960,-500.0,0.00019893,2]
[328119985,1716896835981,-4357.10788015,0.00019893,2]
[328119986,1716896836003,-304.1042226,0.00019893,2]
[328119987,1716896836024,-4357.10788015,0.00019893,2]
[328119988,1716896836046,-4357.10788015,0.00019893,2]
[328119989,1716896836067,-4357.10788015,0.00019893,2]
[328119990,1716896836089,-500.0,0.00019893,2]
[328119991,1716896836110,-4357.10788015,0.00019893,2]
[328119992,1716896836130,-500.0,0.00019893,2]
[328119993,1716896836152,-4357.10788015,0.00019893,2]
[328119994,1716896836173,-4357.10788015,0.00019893,2]
[328119995,1716896836193,-4357.10788015,0.00019893,2]
[328119996,1716896836214,-4357.10788015,0.00019893,2]
[328119997,1716896836235,-4357.10788015,0.00019893,2]
[328119998,1716896836255,-4357.10788015,0.00019893,2]
[328119999,1716896836275,-4357.10788015,0.00019893,2]
[328120000,1716896836297,-4357.10788015,0.00019893,2]
[328120001,1716896836317,-4357.10788015,0.00019893,2]
[328120002,1716896836338,-4357.10788015,0.00019893,2]
[328120003,1716896836359,-4357.10788015,0.00019893,2]
[328120004,1716896836379,-4357.10788015,0.00019893,2]
[328120005,1716896836399,-4357.10788015,0.00019893,2]
[328120006,1716896836421,-4357.10788015,0.00019893,2]
[328120007,1716896836444,-4357.10788015,0.00019893,2]
[328120008,1716896836464,-4357.10788015,0.00019893,2]
[328120009,1716896836486,-4357.10788015,0.00019893,2]
[328120010,1716896836506,-4979.55186294,0.00019893,2]
[328120011,1716896836525,-522.33782236,0.00019899,2]
[328120012,1716896836544,-44986.97272528,0.000199,2]
[328120013,1716896836563,-675.01719094,0.00019998,2]
[328120014,1716896836582,-1337.79016571,0.00019999,2]
[328120015,1716896836600,-25147.7157198,0.0002,2]
[328120016,1716896836623,-206.44649455,0.0002,2]
[328120017,1716896836641,-22871.6411433,0.0002,2]
[328120018,1716896836661,-156.87995729,0.0002,2]
[328120019,1716896836681,-154.92253873,0.0002,2]
[328120020,1716896836703,-400.0,0.0002,2]
[328120021,1716896836722,-154.92253873,0.0002,2]
[328120022,1716896836744,-499.15286035,0.0002,2]
[328120023,1716896836765,-527.89257557,0.0002,4]
[328120024,1716896836786,-1144.17653548,0.0002,2]
[328120025,1716896836806,-282.0,0.0002,2]
[328120026,1716896836825,-564.0,0.0002,2]
[328120027,1716896836844,-564.0,0.0002,2]
[328120028,1716896836864,-392.80011615,0.000203,2]
[328120029,1716896836883,-154.93218307,0.00020389,2]
[328120030,1716896836902,-620.0,0.00020755,2]
[328120031,1716896836924,-2642.27310899,0.00020908,2]
[328120032,1716896836943,-156.78443709,0.00020908,2]
[328120033,1716896836962,-297.70383142,0.00020908,2]
[328120034,1716896836981,-218.67271763,0.00020908,2]
[328120035,1716896837001,-155.01620241,0.00020908,2]
[328120036,1716896837021,-295.18250646,0.00020909,2]
[328120037,1716896837040,-154.90705577,0.0002091,2]
[328120038,1716896837060,-232.16433848,0.0002091,2]
[328120039,1716896837081,-625.55839312,0.0002091,2]
[328120040,1716896837101,-5567.8201181,0.0002091,2]
[328120041,1716896837124,-175.38250649,0.0002091,2]
[328120042,1716896837144,-194.96218124,0.0002091,2]
[328120043,1716896837164,-570.04865151,0.0002091,2]
[328120044,1716896837186,-309.74284003,0.00020911,2]
[328120045,1716896837205,-156.17432466,0.00020911,2]
[328120046,1716896837225,-156.61929488,0.00020911,2]
[328120047,1716896837245,-155.19120555,0.00020911,2]
[328120048,1716896837264,-189.72759265,0.00020911,2]
[328120049,1716896837284,-197.55608361,0.00020911,2]
[328120050,1716896837304,-155.32162016,0.00020911,2]
[328120051,1716896837324,-289.63226388,0.00020911,2]
[328120052,1716896837344,-9018.88874889,0.00020911,2]
[328120053,1716896837364,-156.9721319,0.00020911,2]
[328120054,1716896837383,-17539.68169419,0.00020911,2]
[328120055,1716896837550,-1282.25076088,0.00020911,2]
[328120056,1716896837568,-682.69359414,0.00020911,2]
[328120057,1716896837586,-1422.35770959,0.00020911,2]
[328120058,1716896837604,-164.28466186,0.00020911,2]
[328120059,1716896837627,-155.23520848,0.00020911,2]
[328120060,1716896837647,-1500.8903033,0.00020912,2]
[328120061,1716896837665,-392.93445507,0.00020912,2]
[328120062,1716896837688,-3164.9082381,0.00020913,2]
[328120063,1716896837708,-5191.78027798,0.00020913,2]
[328120064,1716896837726,-280.0,0.00021,2]
[328120065,1716896837743,-6503.1605506,0.00021,2]
[328120282,1716897038109,-162.7360072,0.00019031,2]
[328120283,1716897038119,-274.92390662,0.00019031,2]
[328120284,1716897038128,-150.241,0.00019032,2]
[328120285,1716897038138,-351.77428625,0.0002,2]
[328120286,1716897038147,-120.28378543,0.0002,2]
[328120287,1716897038173,-1023.89275005,0.0002,2]
[328120288,1716897038183,-154.92253873,0.0002,2]
[328120290,1716897038192,-156.87995729,0.00020708,2]
[328120292,1716897038202,-419.09844123,0.0002071,2]
[328120294,1716897038211,-12890.1755022,0.00020809,2]
[328120297,1716897038223,-4103.67036554,0.00020809,2]
[328120299,1716897038235,-995.37483115,0.00020809,2]
[328120300,1716897038246,-4882.42044441,0.00020809,2]
[328120301,1716897038256,-609.39679214,0.0002081,2]
[328120302,1716897038265,-609.39679214,0.0002081,2]
[328120303,1716897038274,-389.76154032,0.0002081,2]
[328120304,1716897038284,-221.67249898,0.0002081,2]
[328120305,1716897038294,-609.39679214,0.0002081,2]
[328120306,1716897038303,-185.52059967,0.0002081,2]
[328120307,1716897038313,-609.39679214,0.0002081,2]
[328120308,1716897038322,-500.0,0.0002081,2]
[328120309,1716897038331,-609.39679214,0.0002081,2]
[328120310,1716897038340,-500.0,0.0002081,2]
[328120311,1716897038350,-609.39679214,0.0002081,2]
[328120312,1716897038361,-500.0,0.0002081,2]
[328120313,1716897038370,-609.39679214,0.0002081,2]
[328120314,1716897038378,-500.0,0.0002081,2]
[328120315,1716897038388,-609.39679214,0.0002081,2]
[328120316,1716897038397,-500.0,0.0002081,2]
[328120317,1716897038406,-609.39679214,0.0002081,2]
[328120318,1716897038416,-609.39679214,0.0002081,2]
[328120319,1716897038426,-500.0,0.0002081,2]
[328120320,1716897038435,-609.39679214,0.0002081,2]
[328120321,1716897038444,-500.0,0.0002081,2]
[328120322,1716897038453,-609.39679214,0.0002081,2]
[328120323,1716897038463,-609.39679214,0.0002081,2]
[328120324,1716897038472,-609.39679214,0.0002081,2]
[328120325,1716897038481,-173.24614167,0.0002081,2]
[328120326,1716897038490,-609.39679214,0.0002081,2]
[328120327,1716897038499,-609.39679214,0.0002081,2]
[328120328,1716897038509,-609.39679214,0.0002081,2]
[328120329,1716897038518,-609.39679214,0.0002081,2]
[328120330,1716897038527,-609.39679214,0.0002081,2]
[328120331,1716897038536,-609.39679214,0.0002081,2]
[328120332,1716897038547,-609.39679214,0.0002081,2]
[328120333,1716897038556,-609.39679214,0.0002081,2]
[328120334,1716897038565,-609.39679214,0.0002081,2]
[328120335,1716897038574,-609.39679214,0.0002081,2]
[328120336,1716897038584,-609.39679214,0.0002081,2]
[328120337,1716897038594,-609.39679214,0.0002081,2]
[328120338,1716897038605,-609.39679214,0.0002081,2]
[328120339,1716897038615,-609.39679214,0.0002081,2]
[328120340,1716897038624,-609.39679214,0.0002081,2]
[328120341,1716897038634,-609.39679214,0.0002081,2]
[328120342,1716897038643,-609.39679214,0.0002081,2]
[328120343,1716897038652,-609.39679214,0.0002081,2]
[328120344,1716897038662,-609.39679214,0.0002081,2]
[328120345,1716897038675,-609.39679214,0.0002081,2]
[328120346,1716897038684,-609.39679214,0.0002081,2]
[328120347,1716897038694,-609.39679214,0.0002081,2]
[328120348,1716897038703,-609.39679214,0.0002081,2]
[328120349,1716897038714,-609.39679214,0.0002081,2]
[328120350,1716897038724,-609.39679214,0.0002081,2]
[328120351,1716897038733,-609.39679214,0.0002081,2]
[328120352,1716897038742,-609.39679214,0.0002081,2]
[328120353,1716897038753,-609.39679214,0.0002081,2]
[328120354,1716897038762,-609.39679214,0.0002081,2]
[328120355,1716897038772,-609.39679214,0.0002081,2]
[328120356,1716897038781,-609.39679214,0.0002081,2]
[328120357,1716897038790,-609.39679214,0.0002081,2]
[328120358,1716897038799,-609.39679214,0.0002081,2]
[328120359,1716897038808,-609.39679214,0.0002081,2]
[328120360,1716897038818,-609.39679214,0.0002081,2]
[328120361,1716897038827,-609.39679214,0.0002081,2]
[328120362,1716897038837,-445.13085438,0.0002081,2]
[328120363,1716897038847,-592.46910346,0.0002081,2]
[328120364,1716897038858,-592.46910346,0.0002081,2]
[328120365,1716897038867,-592.46910346,0.0002081,2]
[328120366,1716897038877,-592.46910346,0.0002081,2]
[328120367,1716897038886,-592.46910346,0.0002081,2]
[328120368,1716897038897,-592.46910346,0.0002081,2]
[328120369,1716897038907,-592.46910346,0.0002081,2]
[328120370,1716897038916,-592.46910346,0.0002081,2]
[328120371,1716897038926,-592.46910346,0.0002081,2]
[328120372,1716897038936,-592.46910346,0.0002081,2]
[328120373,1716897038946,-592.46910346,0.0002081,2]
[328120374,1716897038955,-592.46910346,0.0002081,2]
[328120375,1716897038964,-592.46910346,0.0002081,2]
[328120376,1716897038973,-592.46910346,0.0002081,2]
[328120377,1716897038982,-592.46910346,0.0002081,2]
[328120378,1716897038991,-592.46910346,0.0002081,2]
[328120379,1716897039000,-592.46910346,0.0002081,2]
[328120380,1716897039009,-592.46910338,0.0002081,2]
[328120381,1716897039019,-44535.67071393,0.00020811,3]
[328120388,1716897041201,-499.15286035,0.00020707,2]
[328120389,1716897041211,-2.82922736,0.00020811,3]
[328120404,1716897043302,-35336.6792647,0.00020811,3]
[328120408,1716897044876,-9012.82079401,0.00020811,3]
[328120409,1716897044887,-190.80713581,0.00020912,2]
[328120410,1716897044897,-400.0,0.00020912,2]
[328120411,1716897044906,-4659.30695718,0.00021,2]
[328120412,1716897045413,-3954.89787565,0.00021,2]
[328120413,1716897045425,-7322.15938296,0.00021,2]
[328120420,1716897121514,10400.0,0.00028,120]
[328120425,1716897992699,198.1097642,9.9e-05,2]
[328120567,1716898238302,-585.53683606,0.00018059,3]
[328120568,1716898238312,-355.3931472,0.00018144,2]
[328120569,1716898238321,-20759.502991,0.00018159,2]
[328120570,1716898238330,-164.35628302,0.00018417,2]
[328120571,1716898238341,-151.0,0.00018517,3]
[328120572,1716898238350,-151.0,0.00018517,2]
[328120573,1716898238359,-260.09104,0.00018518,2]
[328120574,1716898238368,-162.7360072,0.00019,2]
[328120575,1716898238378,-209.675,0.00019032,2]
[328120576,1716898238387,-174.375222,0.00019178,2]
[328120577,1716898238397,-171.038686,0.00019178,2]
[328120578,1716898238407,-153.0,0.00019473,2]
[328120579,1716898238416,-153.0,0.00019478,2]
[328120581,1716898238425,-163.3455141,0.00019582,2]
[328120582,1716898238435,-390.67163156,0.000199,2]
[328120583,1716898238444,-153.0,0.00019978,2]
[328120584,1716898238454,-641.26429735,0.0002,2]
[328120585,1716898238463,-4025.7128532,0.0002,2]
[328120591,1716898241409,-18845.9282901,0.0002,2]
[328120592,1716898241419,-499.15286035,0.0002,2]
[328120593,1716898241429,-265.01655584,0.0002,2]
[328120594,1716898241438,-1144.17653548,0.0002,2]
[328120595,1716898241448,-154.92253873,0.00020074,2]
[328120596,1716898241457,-153.0,0.00020078,2]
[328120597,1716898241467,-600.0,0.0002016,2]
[328120598,1716898241476,-153.0,0.00020294,2]